[Event "Titled Tuesday Blitz August 08 Early 2023"]
[White "Maluco_do_Natal_00"]
[Black "Begunov, Konstantin"]
[BlackFideId "4118510"]
[WhiteElo "2067"]
[BlackElo "2425"]
[Result "0-1"]
[Round "2"]
[TimeControl "180+1"]
[Date "2023.08.08"]
[WhiteClock "0:00:37"]
[BlackClock "0:00:48"]
[Board "268"]

1. e4 {[%clk 0:03:00]}  c5 {[%clk 0:02:58]} 2. Nf3 {[%clk 0:03:00]}  d6 {[%clk 0:02:57]} 3. d4 {[%clk 0:03:01]}  cxd4 {[%clk 0:02:58]} 4. Nxd4 {[%clk 0:03:01]}  Nf6 {[%clk 0:02:59]} 5. Nc3 {[%clk 0:03:01]}  a6 {[%clk 0:02:59]} 6. Be3 {[%clk 0:03:01]}  Ng4 {[%clk 0:02:59]} 7. Bc1 {[%clk 0:02:53]}  Nc6 {[%clk 0:02:58]} 8. h3 {[%clk 0:02:51]}  Qb6 {[%clk 0:02:58]} 9. hxg4 {[%clk 0:02:39]}  Qxd4 {[%clk 0:02:58]} 10. Be2 {[%clk 0:02:32]}  Qxd1+ {[%clk 0:02:30]} 11. Bxd1 {[%clk 0:02:33]}  Ne5 {[%clk 0:02:30]} 12. f3 {[%clk 0:02:31]}  Be6 {[%clk 0:02:29]} 13. Be2 {[%clk 0:02:14]}  Rc8 {[%clk 0:02:28]} 14. Bd2 {[%clk 0:02:11]}  g6 {[%clk 0:02:23]} 15. O-O-O {[%clk 0:02:06]}  Bg7 {[%clk 0:02:23]} 16. g5 {[%clk 0:02:01]}  Bc4 {[%clk 0:01:58]} 17. f4 {[%clk 0:01:53]}  Bxe2 {[%clk 0:01:54]} 18. Nxe2 {[%clk 0:01:53]}  Nd3+ {[%clk 0:01:49]} 19. Kb1 {[%clk 0:01:52]}  Nf2 {[%clk 0:01:44]} 20. Ng3 {[%clk 0:01:40]}  Nxd1 {[%clk 0:01:42]} 21. Rxd1 {[%clk 0:01:40]}  h5 {[%clk 0:01:41]} 22. Ne2 {[%clk 0:01:28]}  Kd7 {[%clk 0:01:24]} 23. Nc3 {[%clk 0:01:21]}  Bxc3 {[%clk 0:01:17]} 24. Bxc3 {[%clk 0:01:20]}  Rhd8 {[%clk 0:01:17]} 25. a4 {[%clk 0:01:15]}  Rc4 {[%clk 0:01:11]} 26. e5 {[%clk 0:01:10]}  Rxa4 {[%clk 0:01:01]} 27. exd6 {[%clk 0:01:09]}  exd6 {[%clk 0:01:01]} 28. g3 {[%clk 0:01:05]}  Re8 {[%clk 0:00:56]} 29. b3 {[%clk 0:00:59]}  Rae4 {[%clk 0:00:55]} 30. Kb2 {[%clk 0:00:57]}  Kc6 {[%clk 0:00:56]} 31. Ka3 {[%clk 0:00:52]}  Re3 {[%clk 0:00:55]} 32. Bb4 {[%clk 0:00:52]}  R8e6 {[%clk 0:00:54]} 33. Rg1 {[%clk 0:00:50]}  b6 {[%clk 0:00:50]} 34. c4 {[%clk 0:00:48]}  a5 {[%clk 0:00:49]} 35. Bd2 {[%clk 0:00:46]}  Rd3 {[%clk 0:00:49]} 36. Be1 {[%clk 0:00:37]}  Ree3 {[%clk 0:00:48]} 0-1


[Site "https://www.chess.com"]

[Event "Titled Tuesday Blitz August 08 Early 2023"]
[White "Mangialardo, Tiago Carvalho"]
[Black "Gutkin, Ilya"]
[WhiteFideId "2130718"]
[BlackFideId "16203470"]
[WhiteElo "2067"]
[BlackElo "2425"]
[Result "0-1"]
[Round "2"]
[TimeControl "180+1"]
[Date "2023.08.08"]
[WhiteClock "0:00:00"]
[BlackClock "0:00:09"]
[Board "269"]

1. e4 {[%clk 0:02:51]}  e5 {[%clk 0:02:58]} 2. Nf3 {[%clk 0:02:51]}  Nc6 {[%clk 0:02:59]} 3. Bb5 {[%clk 0:02:49]}  a6 {[%clk 0:02:57]} 4. Ba4 {[%clk 0:02:49]}  Nf6 {[%clk 0:02:57]} 5. O-O {[%clk 0:02:45]}  b5 {[%clk 0:02:56]} 6. Bb3 {[%clk 0:02:44]}  d6 {[%clk 0:02:55]} 7. c3 {[%clk 0:02:37]}  Be7 {[%clk 0:02:49]} 8. d4 {[%clk 0:02:38]}  O-O {[%clk 0:02:46]} 9. h3 {[%clk 0:02:24]}  exd4 {[%clk 0:02:21]} 10. cxd4 {[%clk 0:02:23]}  Bb7 {[%clk 0:02:17]} 11. Re1 {[%clk 0:02:15]}  Na5 {[%clk 0:02:16]} 12. Bc2 {[%clk 0:02:13]}  c5 {[%clk 0:02:12]} 13. Bg5 {[%clk 0:02:06]}  Re8 {[%clk 0:02:02]} 14. Nbd2 {[%clk 0:01:55]}  h6 {[%clk 0:01:44]} 15. Bh4 {[%clk 0:01:54]}  Nc6 {[%clk 0:01:37]} 16. e5 {[%clk 0:01:51]}  dxe5 {[%clk 0:01:34]} 17. dxe5 {[%clk 0:01:50]}  Nd5 {[%clk 0:01:32]} 18. Bg3 {[%clk 0:01:31]}  Ndb4 {[%clk 0:01:29]} 19. Bb1 {[%clk 0:01:28]}  Nd4 {[%clk 0:01:26]} 20. Ne4 {[%clk 0:01:07]}  Nbc6 {[%clk 0:01:01]} 21. Nd6 {[%clk 0:00:39]}  Bxd6 {[%clk 0:00:55]} 22. exd6 {[%clk 0:00:38]}  Nxf3+ {[%clk 0:00:55]} 23. gxf3 {[%clk 0:00:37]}  Rxe1+ {[%clk 0:00:48]} 24. Qxe1 {[%clk 0:00:36]}  Nd4 {[%clk 0:00:49]} 25. Qe3 {[%clk 0:00:26]}  Nxf3+ {[%clk 0:00:35]} 26. Kf1 {[%clk 0:00:25]}  Qf6 {[%clk 0:00:35]} 27. Bd3 {[%clk 0:00:14]}  Qxb2 {[%clk 0:00:26]} 28. Rb1 {[%clk 0:00:11]}  Qd4 {[%clk 0:00:25]} 29. Qe2 {[%clk 0:00:06]}  Bc6 {[%clk 0:00:17]} 30. Rd1 {[%clk 0:00:04]}  Re8 {[%clk 0:00:16]} 31. Qc2 {[%clk 0:00:01]}  Qf6 {[%clk 0:00:12]} 32. Bf5 {[%clk 0:00:01]}  Rd8 {[%clk 0:00:11]} 33. Bg4 {[%clk 0:00:01]}  Ne5 {[%clk 0:00:11]} 34. Bf5 {[%clk 0:00:00]}  Rxd6 {[%clk 0:00:09]} 0-1


[Site "https://www.chess.com"]

[Event "Titled Tuesday Blitz August 08 Early 2023"]
[White "Osiecki, Stanislaw"]
[Black "Swicarz, Maciej"]
[WhiteFideId "1102990"]
[BlackFideId "1113585"]
[WhiteElo "2010"]
[BlackElo "2422"]
[Result "0-1"]
[Round "2"]
[TimeControl "180+1"]
[Date "2023.08.08"]
[WhiteClock "0:00:00"]
[BlackClock "0:00:54"]
[Board "272"]

1. e4 {[%clk 0:02:51]}  c5 {[%clk 0:02:59]} 2. c3 {[%clk 0:02:46]}  Nf6 {[%clk 0:02:59]} 3. e5 {[%clk 0:02:45]}  Nd5 {[%clk 0:02:59]} 4. d4 {[%clk 0:02:46]}  cxd4 {[%clk 0:02:59]} 5. Nf3 {[%clk 0:02:47]}  d6 {[%clk 0:02:58]} 6. cxd4 {[%clk 0:02:46]}  Nc6 {[%clk 0:02:58]} 7. Bc4 {[%clk 0:02:47]}  Nb6 {[%clk 0:02:58]} 8. Bb5 {[%clk 0:02:47]}  dxe5 {[%clk 0:02:58]} 9. Nxe5 {[%clk 0:02:47]}  Bd7 {[%clk 0:02:58]} 10. Nxd7 {[%clk 0:02:48]}  Qxd7 {[%clk 0:02:59]} 11. O-O {[%clk 0:02:48]}  e6 {[%clk 0:02:58]} 12. Nc3 {[%clk 0:02:47]}  Rd8 {[%clk 0:02:58]} 13. Be3 {[%clk 0:02:47]}  Be7 {[%clk 0:02:56]} 14. Qg4 {[%clk 0:02:37]}  O-O {[%clk 0:02:55]} 15. Rad1 {[%clk 0:02:33]}  Rfe8 {[%clk 0:02:53]} 16. h4 {[%clk 0:02:29]}  Nd5 {[%clk 0:02:49]} 17. Nxd5 {[%clk 0:02:15]}  Qxd5 {[%clk 0:02:49]} 18. Bxc6 {[%clk 0:02:08]}  Qxc6 {[%clk 0:02:49]} 19. h5 {[%clk 0:01:59]}  Bf8 {[%clk 0:02:34]} 20. h6 {[%clk 0:01:57]}  g6 {[%clk 0:02:32]} 21. Bg5 {[%clk 0:01:41]}  Rd5 {[%clk 0:02:31]} 22. Rc1 {[%clk 0:01:31]}  Qd7 {[%clk 0:02:28]} 23. Be3 {[%clk 0:01:29]}  Rh5 {[%clk 0:02:16]} 24. Qg3 {[%clk 0:01:23]}  Bd6 {[%clk 0:02:06]} 25. f4 {[%clk 0:01:23]}  Rxh6 {[%clk 0:02:01]} 26. Qf3 {[%clk 0:01:19]}  Rh5 {[%clk 0:01:58]} 27. Rfd1 {[%clk 0:01:16]}  Rd5 {[%clk 0:01:57]} 28. Rc2 {[%clk 0:01:12]}  Rc8 {[%clk 0:01:54]} 29. Rdc1 {[%clk 0:01:11]}  Rxc2 {[%clk 0:01:54]} 30. Rxc2 {[%clk 0:01:11]}  Bf8 {[%clk 0:01:53]} 31. Qe4 {[%clk 0:00:58]}  Bg7 {[%clk 0:01:49]} 32. Rd2 {[%clk 0:00:57]}  h5 {[%clk 0:01:45]} 33. b3 {[%clk 0:00:56]}  Qb5 {[%clk 0:01:42]} 34. Rc2 {[%clk 0:00:52]}  Qd7 {[%clk 0:01:42]} 35. Rd2 {[%clk 0:00:52]}  Bf6 {[%clk 0:01:39]} 36. Kh1 {[%clk 0:00:52]}  Kg7 {[%clk 0:01:38]} 37. Rd3 {[%clk 0:00:51]}  a6 {[%clk 0:01:33]} 38. Rd2 {[%clk 0:00:51]}  Ra5 {[%clk 0:01:30]} 39. a4 {[%clk 0:00:49]}  Rd5 {[%clk 0:01:25]} 40. Rd3 {[%clk 0:00:48]}  Qc6 {[%clk 0:01:23]} 41. Kh2 {[%clk 0:00:45]}  Qc2 {[%clk 0:01:21]} 42. Bg1 {[%clk 0:00:40]}  Qc6 {[%clk 0:01:11]} 43. Be3 {[%clk 0:00:39]}  Qd6 {[%clk 0:01:10]} 44. Kh1 {[%clk 0:00:37]}  Kg8 {[%clk 0:01:07]} 45. Kg1 {[%clk 0:00:36]}  Bg7 {[%clk 0:01:07]} 46. Kf2 {[%clk 0:00:36]}  Bh6 {[%clk 0:01:06]} 47. Kf3 {[%clk 0:00:36]}  Rf5 {[%clk 0:01:06]} 48. g3 {[%clk 0:00:30]}  Qd5 {[%clk 0:01:04]} 49. Qxd5 {[%clk 0:00:29]}  Rxd5 {[%clk 0:01:05]} 50. Rc3 {[%clk 0:00:29]}  Rd7 {[%clk 0:01:05]} 51. Rc8+ {[%clk 0:00:29]}  Kh7 {[%clk 0:01:03]} 52. Ke4 {[%clk 0:00:24]}  Bg7 {[%clk 0:01:02]} 53. Rc4 {[%clk 0:00:22]}  Bf6 {[%clk 0:01:02]} 54. Rc8 {[%clk 0:00:21]}  Kg7 {[%clk 0:01:02]} 55. Rc4 {[%clk 0:00:21]}  Be7 {[%clk 0:01:01]} 56. Rc8 {[%clk 0:00:20]}  Ba3 {[%clk 0:01:01]} 57. Rc2 {[%clk 0:00:19]}  Bb4 {[%clk 0:01:01]} 58. Rc4 {[%clk 0:00:18]}  Be1 {[%clk 0:01:01]} 59. Kf3 {[%clk 0:00:16]}  f6 {[%clk 0:01:01]} 60. Rc1 {[%clk 0:00:13]}  Bb4 {[%clk 0:00:59]} 61. Rc4 {[%clk 0:00:13]}  Bd6 {[%clk 0:01:00]} 62. Rc1 {[%clk 0:00:12]}  Rc7 {[%clk 0:01:00]} 63. Rxc7+ {[%clk 0:00:09]}  Bxc7 {[%clk 0:01:00]} 64. Ke4 {[%clk 0:00:09]}  Kf7 {[%clk 0:00:59]} 65. d5 {[%clk 0:00:10]}  f5+ {[%clk 0:00:59]} 66. Kd3 {[%clk 0:00:04]}  exd5 {[%clk 0:00:59]} 67. Bc5 {[%clk 0:00:03]}  Ke6 {[%clk 0:00:58]} 68. Kd4 {[%clk 0:00:03]}  h4 {[%clk 0:00:58]} 69. gxh4 {[%clk 0:00:03]}  Bxf4 {[%clk 0:00:59]} 70. Bf8 {[%clk 0:00:01]}  Bg3 {[%clk 0:00:57]} 71. Kc3 {[%clk 0:00:02]}  Bxh4 {[%clk 0:00:57]} 72. Kb4 {[%clk 0:00:01]}  Bd8 {[%clk 0:00:56]} 73. Kc5 {[%clk 0:00:00]}  g5 {[%clk 0:00:54]} 0-1


[Site "https://www.chess.com"]

[Event "Titled Tuesday Blitz August 08 Early 2023"]
[White "Tharushi, T H D Niklesha"]
[Black "Rom, Jasper"]
[WhiteFideId "9918264"]
[BlackFideId "2023733"]
[WhiteElo "1999"]
[BlackElo "2421"]
[Result "0-1"]
[Round "2"]
[TimeControl "180+1"]
[Date "2023.08.08"]
[WhiteClock "0:00:00"]
[BlackClock "0:00:06"]
[Board "274"]

1. d4 {[%clk 0:02:55]}  d5 {[%clk 0:02:59]} 2. c4 {[%clk 0:02:55]}  e6 {[%clk 0:02:58]} 3. Nc3 {[%clk 0:02:54]}  c6 {[%clk 0:02:58]} 4. e4 {[%clk 0:02:52]}  dxe4 {[%clk 0:02:57]} 5. Nxe4 {[%clk 0:02:51]}  Bb4+ {[%clk 0:02:57]} 6. Nc3 {[%clk 0:02:50]}  Nf6 {[%clk 0:02:56]} 7. Bg5 {[%clk 0:02:49]}  h6 {[%clk 0:02:49]} 8. Bh4 {[%clk 0:02:29]}  Qa5 {[%clk 0:02:45]} 9. Qc2 {[%clk 0:02:14]}  c5 {[%clk 0:02:32]} 10. Bxf6 {[%clk 0:02:05]}  gxf6 {[%clk 0:02:32]} 11. d5 {[%clk 0:01:54]}  Bxc3+ {[%clk 0:02:03]} 12. bxc3 {[%clk 0:01:32]}  Nd7 {[%clk 0:01:55]} 13. Nf3 {[%clk 0:01:29]}  Nb6 {[%clk 0:01:46]} 14. Bd3 {[%clk 0:01:20]}  exd5 {[%clk 0:01:34]} 15. cxd5 {[%clk 0:00:53]}  Nxd5 {[%clk 0:01:33]} 16. Rc1 {[%clk 0:00:47]}  Be6 {[%clk 0:01:25]} 17. O-O {[%clk 0:00:46]}  Rg8 {[%clk 0:01:16]} 18. Bf5 {[%clk 0:00:29]}  O-O-O {[%clk 0:01:08]} 19. Rfe1 {[%clk 0:00:20]}  Rd6 {[%clk 0:00:49]} 20. Bxe6+ {[%clk 0:00:19]}  fxe6 {[%clk 0:00:49]} 21. c4 {[%clk 0:00:18]}  Nf4 {[%clk 0:00:41]} 22. g3 {[%clk 0:00:18]}  Nd3 {[%clk 0:00:36]} 23. Red1 {[%clk 0:00:18]}  Rgd8 {[%clk 0:00:36]} 24. Rb1 {[%clk 0:00:17]}  Nb4 {[%clk 0:00:31]} 25. Qe2 {[%clk 0:00:15]}  Qxa2 {[%clk 0:00:29]} 26. Qxa2 {[%clk 0:00:13]}  Nxa2 {[%clk 0:00:28]} 27. Rxd6 {[%clk 0:00:13]}  Rxd6 {[%clk 0:00:29]} 28. Ra1 {[%clk 0:00:13]}  Nb4 {[%clk 0:00:20]} 29. Rxa7 {[%clk 0:00:12]}  Ra6 {[%clk 0:00:21]} 30. Rxa6 {[%clk 0:00:09]}  bxa6 {[%clk 0:00:21]} 31. Nd2 {[%clk 0:00:09]}  Kc7 {[%clk 0:00:19]} 32. Kg2 {[%clk 0:00:09]}  a5 {[%clk 0:00:19]} 33. Nb3 {[%clk 0:00:06]}  Kb6 {[%clk 0:00:19]} 34. Nd2 {[%clk 0:00:06]}  a4 {[%clk 0:00:19]} 35. Nb1 {[%clk 0:00:05]}  a3 {[%clk 0:00:12]} 36. Nxa3 {[%clk 0:00:04]}  Nd3 {[%clk 0:00:09]} 37. Kf3 {[%clk 0:00:04]}  Ka5 {[%clk 0:00:06]} 38. Ke3 {[%clk 0:00:05]}  Nb2 {[%clk 0:00:06]} 39. Kd2 {[%clk 0:00:04]}  Kb4 {[%clk 0:00:06]} 40. Nb5 {[%clk 0:00:03]}  Nxc4+ {[%clk 0:00:06]} 41. Kd3 {[%clk 0:00:00]}  Kxb5 {[%clk 0:00:06]} 0-1


[Site "https://www.chess.com"]

[Event "Titled Tuesday Blitz August 08 Early 2023"]
[White "Rangel, Daniel"]
[Black "Saim, Mohamed Ilias"]
[WhiteFideId "2124475"]
[BlackFideId "7900465"]
[WhiteElo "2420"]
[BlackElo "1980"]
[Result "1-0"]
[Round "2"]
[TimeControl "180+1"]
[Date "2023.08.08"]
[WhiteClock "0:01:32"]
[BlackClock "0:00:00"]
[Board "275"]

1. d4 {[%clk 0:02:59]}  Nf6 {[%clk 0:02:59]} 2. c4 {[%clk 0:03:00]}  e6 {[%clk 0:02:59]} 3. Nc3 {[%clk 0:03:00]}  Bb4 {[%clk 0:03:00]} 4. e3 {[%clk 0:03:00]}  b6 {[%clk 0:03:00]} 5. Bd2 {[%clk 0:03:00]}  Bb7 {[%clk 0:02:59]} 6. f3 {[%clk 0:02:56]}  d5 {[%clk 0:02:58]} 7. cxd5 {[%clk 0:02:55]}  exd5 {[%clk 0:02:58]} 8. Bd3 {[%clk 0:02:55]}  O-O {[%clk 0:02:57]} 9. Nge2 {[%clk 0:02:55]}  Re8 {[%clk 0:02:57]} 10. Qc2 {[%clk 0:02:55]}  Nc6 {[%clk 0:02:43]} 11. g4 {[%clk 0:02:52]}  h6 {[%clk 0:02:42]} 12. h4 {[%clk 0:02:52]}  Bd6 {[%clk 0:02:39]} 13. g5 {[%clk 0:02:51]}  Nb4 {[%clk 0:02:37]} 14. Qb1 {[%clk 0:02:47]}  Nxd3+ {[%clk 0:02:35]} 15. Qxd3 {[%clk 0:02:48]}  Nh5 {[%clk 0:02:27]} 16. gxh6 {[%clk 0:02:45]}  a5 {[%clk 0:02:08]} 17. hxg7 {[%clk 0:02:36]}  Ba6 {[%clk 0:02:04]} 18. Qf5 {[%clk 0:02:35]}  Nxg7 {[%clk 0:01:57]} 19. Qg4 {[%clk 0:02:31]}  Bc8 {[%clk 0:01:49]} 20. Qg2 {[%clk 0:02:30]}  Qf6 {[%clk 0:01:43]} 21. Nxd5 {[%clk 0:02:23]}  Qe6 {[%clk 0:01:33]} 22. Nef4 {[%clk 0:02:21]}  Qh6 {[%clk 0:01:31]} 23. O-O-O {[%clk 0:02:16]}  Be6 {[%clk 0:01:24]} 24. e4 {[%clk 0:02:12]}  c6 {[%clk 0:00:56]} 25. Nxe6 {[%clk 0:02:06]}  Qxe6 {[%clk 0:00:56]} 26. Rdg1 {[%clk 0:01:59]}  Bf8 {[%clk 0:00:53]} 27. Nf4 {[%clk 0:01:47]}  Qxa2 {[%clk 0:00:41]} 28. Nh5 {[%clk 0:01:48]}  Qa1+ {[%clk 0:00:34]} 29. Kc2 {[%clk 0:01:47]}  Qa4+ {[%clk 0:00:34]} 30. Kb1 {[%clk 0:01:46]}  Qxd4 {[%clk 0:00:16]} 31. Nxg7 {[%clk 0:01:32]}  Bxg7 {[%clk 0:00:15]} 32. Bc3 {[%clk 0:01:32]}  Qd3+ {[%clk 0:00:00]} 33. Ka1 {[%clk 0:01:32]} 1-0


[Site "https://www.chess.com"]

[Event "Titled Tuesday Blitz August 08 Early 2023"]
[White "Khromkin, Andrey"]
[Black "Castillo Pena, Patricia Evarista"]
[WhiteFideId "4154126"]
[BlackFideId "6412106"]
[WhiteElo "2415"]
[BlackElo "1940"]
[Result "1-0"]
[Round "2"]
[TimeControl "180+1"]
[Date "2023.08.08"]
[WhiteClock "0:01:24"]
[BlackClock "0:00:15"]
[Board "277"]

1. d4 {[%clk 0:02:59]}  d5 {[%clk 0:02:55]} 2. c4 {[%clk 0:03:00]}  c6 {[%clk 0:02:51]} 3. Nf3 {[%clk 0:02:58]}  Nf6 {[%clk 0:02:51]} 4. Nc3 {[%clk 0:02:58]}  e6 {[%clk 0:02:50]} 5. Bg5 {[%clk 0:02:58]}  Be7 {[%clk 0:02:50]} 6. e3 {[%clk 0:02:58]}  Nbd7 {[%clk 0:02:48]} 7. Qc2 {[%clk 0:02:58]}  O-O {[%clk 0:02:47]} 8. cxd5 {[%clk 0:02:58]}  exd5 {[%clk 0:02:47]} 9. Bd3 {[%clk 0:02:59]}  h6 {[%clk 0:02:44]} 10. Bf4 {[%clk 0:02:58]}  Re8 {[%clk 0:02:44]} 11. g4 {[%clk 0:02:59]}  Nf8 {[%clk 0:02:34]} 12. h3 {[%clk 0:02:58]}  Bb4 {[%clk 0:02:30]} 13. O-O-O {[%clk 0:02:54]}  Qa5 {[%clk 0:02:24]} 14. Kb1 {[%clk 0:02:52]}  Bxc3 {[%clk 0:02:05]} 15. Qxc3 {[%clk 0:02:51]}  Qxc3 {[%clk 0:02:05]} 16. bxc3 {[%clk 0:02:52]}  Ne4 {[%clk 0:02:05]} 17. Bxe4 {[%clk 0:02:49]}  dxe4 {[%clk 0:02:04]} 18. Ne5 {[%clk 0:02:47]}  Ne6 {[%clk 0:01:59]} 19. Bg3 {[%clk 0:02:46]}  Ng5 {[%clk 0:01:17]} 20. h4 {[%clk 0:02:29]}  Nf3 {[%clk 0:01:17]} 21. Nxf3 {[%clk 0:02:30]}  exf3 {[%clk 0:01:17]} 22. g5 {[%clk 0:02:30]}  hxg5 {[%clk 0:01:15]} 23. hxg5 {[%clk 0:02:29]}  Bf5+ {[%clk 0:01:15]} 24. Kb2 {[%clk 0:02:28]}  Rad8 {[%clk 0:00:48]} 25. Rh2 {[%clk 0:02:26]}  c5 {[%clk 0:00:43]} 26. Rdh1 {[%clk 0:02:25]}  Kf8 {[%clk 0:00:42]} 27. dxc5 {[%clk 0:02:13]}  Rd2+ {[%clk 0:00:37]} 28. Kc1 {[%clk 0:02:05]}  Red8 {[%clk 0:00:36]} 29. Bd6+ {[%clk 0:02:04]}  R8xd6 {[%clk 0:00:29]} 30. cxd6 {[%clk 0:02:02]}  Rxd6 {[%clk 0:00:30]} 31. Rh8+ {[%clk 0:01:53]}  Ke7 {[%clk 0:00:30]} 32. Rb8 {[%clk 0:01:51]}  Rb6 {[%clk 0:00:29]} 33. e4 {[%clk 0:01:37]}  Bxe4 {[%clk 0:00:23]} 34. Re1 {[%clk 0:01:37]}  Rb1+ {[%clk 0:00:18]} 35. Kd2 {[%clk 0:01:37]}  Rxe1 {[%clk 0:00:18]} 36. Kxe1 {[%clk 0:01:37]}  f5 {[%clk 0:00:16]} 37. gxf6+ {[%clk 0:01:31]}  gxf6 {[%clk 0:00:16]} 38. Kd2 {[%clk 0:01:31]}  f5 {[%clk 0:00:16]} 39. Ke3 {[%clk 0:01:31]}  Kd6 {[%clk 0:00:16]} 40. Kd4 {[%clk 0:01:31]}  Kc6 {[%clk 0:00:15]} 41. Re8 {[%clk 0:01:24]}  a5 {[%clk 0:00:15]} 42. Rxe4 {[%clk 0:01:21]}  fxe4 {[%clk 0:00:16]} 43. Kxe4 {[%clk 0:01:22]}  Kc5 {[%clk 0:00:16]} 44. Kxf3 {[%clk 0:01:22]}  Kc4 {[%clk 0:00:17]} 45. Ke4 {[%clk 0:01:22]}  Kxc3 {[%clk 0:00:15]} 46. f4 {[%clk 0:01:23]}  Kb2 {[%clk 0:00:15]} 47. f5 {[%clk 0:01:23]}  Kxa2 {[%clk 0:00:16]} 48. f6 {[%clk 0:01:23]}  a4 {[%clk 0:00:17]} 49. f7 {[%clk 0:01:24]}  a3 {[%clk 0:00:18]} 50. f8=Q {[%clk 0:01:25]}  Ka1 {[%clk 0:00:15]} 51. Qxa3+ {[%clk 0:01:24]} 1-0


[Site "https://www.chess.com"]

[Event "Titled Tuesday Blitz August 08 Early 2023"]
[White "Skiadopoulos, Nikolaos"]
[Black "Molina Carretero, Daniel"]
[WhiteFideId "4200772"]
[BlackFideId "32071914"]
[WhiteElo "1880"]
[BlackElo "2412"]
[Result "0-1"]
[Round "2"]
[TimeControl "180+1"]
[Date "2023.08.08"]
[WhiteClock "0:00:00"]
[BlackClock "0:01:20"]
[Board "280"]

1. b4 {[%clk 0:03:00]}  Nf6 {[%clk 0:02:58]} 2. Bb2 {[%clk 0:02:59]}  d5 {[%clk 0:02:59]} 3. e3 {[%clk 0:02:57]}  e6 {[%clk 0:02:58]} 4. a3 {[%clk 0:02:57]}  Be7 {[%clk 0:02:57]} 5. c4 {[%clk 0:02:56]}  O-O {[%clk 0:02:53]} 6. Nf3 {[%clk 0:02:55]}  a5 {[%clk 0:02:50]} 7. b5 {[%clk 0:02:54]}  c6 {[%clk 0:02:44]} 8. a4 {[%clk 0:02:53]}  Nbd7 {[%clk 0:02:41]} 9. Be2 {[%clk 0:02:38]}  Nb6 {[%clk 0:02:36]} 10. Na3 {[%clk 0:02:20]}  Re8 {[%clk 0:02:26]} 11. bxc6 {[%clk 0:02:16]}  bxc6 {[%clk 0:02:26]} 12. cxd5 {[%clk 0:02:15]}  exd5 {[%clk 0:02:23]} 13. O-O {[%clk 0:02:09]}  Bd6 {[%clk 0:02:17]} 14. Qc2 {[%clk 0:01:57]}  Bd7 {[%clk 0:02:16]} 15. d4 {[%clk 0:01:54]}  Ne4 {[%clk 0:02:11]} 16. g3 {[%clk 0:01:31]}  f6 {[%clk 0:02:06]} 17. Bd3 {[%clk 0:01:23]}  Rc8 {[%clk 0:01:58]} 18. Rab1 {[%clk 0:01:16]}  Bh3 {[%clk 0:01:55]} 19. Rfc1 {[%clk 0:01:14]}  Qe7 {[%clk 0:01:52]} 20. Bxe4 {[%clk 0:01:09]}  dxe4 {[%clk 0:01:43]} 21. Nd2 {[%clk 0:00:59]}  Nd5 {[%clk 0:01:43]} 22. Nac4 {[%clk 0:00:55]}  Bc7 {[%clk 0:01:42]} 23. Ba3 {[%clk 0:00:42]}  Qe6 {[%clk 0:01:42]} 24. Rb7 {[%clk 0:00:23]}  h5 {[%clk 0:01:39]} 25. Qd1 {[%clk 0:00:22]}  Bg4 {[%clk 0:01:36]} 26. Qf1 {[%clk 0:00:18]}  h4 {[%clk 0:01:35]} 27. Rcb1 {[%clk 0:00:13]}  Bh3 {[%clk 0:01:33]} 28. Qd1 {[%clk 0:00:09]}  Nc3 {[%clk 0:01:32]} 29. Qh5 {[%clk 0:00:09]}  Nxb1 {[%clk 0:01:28]} 30. Rxb1 {[%clk 0:00:07]}  hxg3 {[%clk 0:01:25]} 31. hxg3 {[%clk 0:00:06]}  Bg4 {[%clk 0:01:24]} 32. Qg6 {[%clk 0:00:03]}  Qf5 {[%clk 0:01:19]} 33. Qxf5 {[%clk 0:00:00]}  Bxf5 {[%clk 0:01:20]} 0-1


[Site "https://www.chess.com"]